Department Family,Entity,Date,Expense Type,Expense Area,Supplier,Transaction No.,VAT Registration No.,Purchase Invoice No.,AP Amount
Department of Health,Royal Papworth Hospital NHS Foundation Trust,11/30/2020,Med & Surg Equip General,Theatres,APC CARDIOVASCULAR LTD,36210799,563354635,944263,"25,091.56"
Department of Health,Royal Papworth Hospital NHS Foundation Trust,11/30/2020,Contr Estate Management,Site Decommissioning,B&M INSTALLATIONS (PETERBOROUGH) LTD,36249343,,BMIP3562,"42,560.00"
Department of Health,Royal Papworth Hospital NHS Foundation Trust,11/30/2020,Extrnl Rehrge : Recivd,Clinical Perfusion,CAMBRIDGE PERFUSION SERVICES LLP,36382403,924492904,2008,"57,792.35"
Department of Health,Royal Papworth Hospital NHS Foundation Trust,11/30/2020,Extrnl Rehrge : Recivd,Medical Staffing - Specialist,CAMBRIDGE UNIVERSITY HOSPITALS NHS FOUNDATION TRUST,36146917,654910528,70027929,"25,000.00"
Department of Health,Royal Papworth Hospital NHS Foundation Trust,11/30/2020,"Books, Journals & Subscr",General Management,CAMBRIDGE UNIVERSITY HOSPITALS NHS FOUNDATION TRUST,36169481,654910528,70027900,"25,825.00"
Department of Health,Royal Papworth Hospital NHS Foundation Trust,11/30/2020,Laboratory External Tests,Histopathology,CAMBRIDGE UNIVERSITY HOSPITALS NHS FOUNDATION TRUST,36146887,654910528,1016435,"32,711.70"
Department of Health,Royal Papworth Hospital NHS Foundation Trust,11/30/2020,Laboratory External Tests,Histopathology,CAMBRIDGE UNIVERSITY HOSPITALS NHS FOUNDATION TRUST,36146905,654910528,1016516,"34,037.85"
Department of Health,Royal Papworth Hospital NHS Foundation Trust,11/30/2020,Extrnl Rehrge : Recivd,Medical Staffing - Specialist,CAMBRIDGE UNIVERSITY HOSPITALS NHS FOUNDATION TRUST,36146908,654910528,70027933,"50,000.00"
Department of Health,Royal Papworth Hospital NHS Foundation Trust,11/30/2020,Laboratory External Tests,External Pathology,CAMBRIDGE UNIVERSITY HOSPITALS NHS FOUNDATION TRUST,36146885,654910528,1016434,"113,379.37"
Department of Health,Royal Papworth Hospital NHS Foundation Trust,11/30/2020,Laboratory External Tests,External Pathology,CAMBRIDGE UNIVERSITY HOSPITALS NHS FOUNDATION TRUST,36146903,654910528,1016515,"128,129.40"
Department of Health,Royal Papworth Hospital NHS Foundation Trust,11/30/2020,Med & Surg Equip General,COVID19,CHALICE MEDICAL LTD,36057066,716360546,45428,"43,470.00"
Department of Health,Royal Papworth Hospital NHS Foundation Trust,11/30/2020,Med & Surg Equip General,COVID19,CHALICE MEDICAL LTD,36088671,716360546,45393,"43,470.00"
Department of Health,Royal Papworth Hospital NHS Foundation Trust,11/30/2020,Rent,Waterbeach,EDDISONS COMMERCIAL LTD,36169514,686313712,8000802,"60,279.25"
Department of Health,Royal Papworth Hospital NHS Foundation Trust,11/30/2020,Electricity,Energy,EDF ENERGY CUSTOMERS PLC,36207349,GB 523041202,000008617609,"69,894.60"
Department of Health,Royal Papworth Hospital NHS Foundation Trust,11/30/2020,Electricity,Energy,EDF ENERGY CUSTOMERS PLC,36207348,GB 523041202,000008626250,"71,829.20"
Department of Health,Royal Papworth Hospital NHS Foundation Trust,11/30/2020,Med & Surg Equip General,Purchasing Department,FRESENIUS KABI LTD,36392394,534934726,913940701,"28,657.60"
Department of Health,Royal Papworth Hospital NHS Foundation Trust,11/30/2020,Income tax - Current,Balance Sheet,INLAND REVENUE CIS,36242270,,126PQ001177772107,"2,327,836.64"
Department of Health,Royal Papworth Hospital NHS Foundation Trust,11/30/2020,External Consultancy Fees,Contracting And Information,INSIGHT DIRECT (UK) LTD,36406431,746075129,5080457,"55,592.00"
Department of Health,Royal Papworth Hospital NHS Foundation Trust,11/30/2020,Med & Surg Equip General,Oncology,JONES AV LTD,36392470,,INV0753,"25,329.60"
Department of Health,Royal Papworth Hospital NHS Foundation Trust,11/30/2020,Med & Surg Equip General,COVID19,MAQUET LTD,36225289,468850893,3129092086,"50,283.22"
Department of Health,Royal Papworth Hospital NHS Foundation Trust,11/30/2020,NHS Accrued Income,Balance Sheet,NHS MID ESSEX CCG,36146897,,7021402469,"39,000.00"
Department of Health,Royal Papworth Hospital NHS Foundation Trust,11/30/2020,NHS Accrued Income,Balance Sheet,NHS NORTH EAST ESSEX CCG,36146898,,7021501667,"34,382.00"
Department of Health,Royal Papworth Hospital NHS Foundation Trust,11/30/2020,Contr Other External,COVID19,NPH HEALTHCARE LTD,36370232,,SI339,"109,558.95"
Department of Health,Royal Papworth Hospital NHS Foundation Trust,11/30/2020,Bldg Ctrcts - PFI Svc Chg,Interest / Divis / P&L On Fas,NPH HEALTHCARE LTD,36294459,,SI329,"1,207,491.18"
Department of Health,Royal Papworth Hospital NHS Foundation Trust,11/30/2020,Bldg Ctrcts - PFI Svc Chg,Interest / Divis / P&L On Fas,NPH HEALTHCARE LTD,36169484,,SI316,"1,445,188.98"
Department of Health,Royal Papworth Hospital NHS Foundation Trust,11/30/2020,Ext Contr Oth Hotel Srv,Sterilisation/Cssd,NUFFIELD HEALTH,36210796,564291137,HSSI7550,"46,295.59"
Department of Health,Royal Papworth Hospital NHS Foundation Trust,11/30/2020,Med & Surg Equip General,Oncology,OLYMPUS KEYMED,36015436,250317495,CD2620437,"44,101.75"
Department of Health,Royal Papworth Hospital NHS Foundation Trust,11/30/2020,Med & Surg Equip General,CPAP,PHILIPS RESPIRONICS UK,36131381,407850060-1,956282885,"26,308.14"
Department of Health,Royal Papworth Hospital NHS Foundation Trust,11/30/2020,Med & Surg Equip General,CPAP,PHILIPS RESPIRONICS UK,36413453,407850060-1,956819595,"42,613.76"
Department of Health,Royal Papworth Hospital NHS Foundation Trust,11/30/2020,CIP Clearing,Balance Sheet,PHILIPS UK AND IRELAND,36344644,GB407850060,7300350854,"141,914.16"
Department of Health,Royal Papworth Hospital NHS Foundation Trust,11/30/2020,Services Received - HAs,External Pathology,PUBLIC HEALTH ENGLAND,36146888,888849628,6462536,"56,106.02"
Department of Health,Royal Papworth Hospital NHS Foundation Trust,11/30/2020,Services Received - HAs,External Pathology,PUBLIC HEALTH ENGLAND,36146896,888849628,6465988,"56,106.02"
Department of Health,Royal Papworth Hospital NHS Foundation Trust,11/30/2020,Services Received - HAs,External Pathology,PUBLIC HEALTH ENGLAND,36146873,888849628,6452729,"61,306.41"
Department of Health,Royal Papworth Hospital NHS Foundation Trust,11/30/2020,Other Liabilities - Curr,Balance Sheet,SUPPLY CHAIN COORDINATION LIMITED,36127193,290885854,1121129403,"197,221.85"
Department of Health,Royal Papworth Hospital NHS Foundation Trust,11/30/2020,Other Liabilities - Curr,Balance Sheet,SUPPLY CHAIN COORDINATION LIMITED,36127182,290885854,1121125314,"234,823.06"
Department of Health,Royal Papworth Hospital NHS Foundation Trust,11/30/2020,Other Liabilities - Curr,Balance Sheet,SUPPLY CHAIN COORDINATION LIMITED,36169483,290885854,1121115251,"253,566.73"
Department of Health,Royal Papworth Hospital NHS Foundation Trust,11/30/2020,Rent,Rent & Rates,VARRIER-JONES FOUNDATION,36207275,699983138,VRINV00000489,"46,158.90"
